[Event "WSTCC-50 2024"]
[Site "Krakow"]
[Date "2024.07.03"]
[Round "2.18"]
[White "Sielicki, Tomasz"]
[Black "Kempter, Ronald"]
[Result "1-0"]
[ECO "A45"]
[WhiteElo "2017"]
[BlackElo "2204"]
[Annotator "RC"]
[PlyCount "119"]
[EventDate "2024.07.01"]
[EventType "team-tourn"]
[EventCountry "POL"]
[SourceTitle "playchess.com"]
[Source "ChessBase"]
[SourceQuality "1"]
[TimeControl "40/5400+30:1800+30"]

1. d4 Nf6 {[%emt 0:00:08]} 2. Bg5 {[%emt 0:00:11]} e6 {[%emt 0:00:00]} 3. e4 {[%emt 0:00:30]} h6 {[%emt 0:00:16]} 4. Bxf6 {[%emt 0:00:10]} Qxf6 {[%emt 0:00:06]} 5. c3 {[%emt 0:00:12]} d6 {[%emt 0:00:20]} 6. Bd3 {[%emt 0:00:30]} g6 {[%emt 0:00:07]} 7. Ne2 {[%emt 0:00:26]} Bg7 {[%emt 0:00:07]} 8. O-O {[%emt 0:01:30]} O-O {[%emt 0:00:22]} 9. f4 {[%emt 0:02:30]} Qe7 {[%emt 0:00:05]} 10. e5 {[%emt 0:11:23]} Nd7 {[%emt 0:06:47]} 11. Nd2 {[%emt 0:04:10]} b6 {[%emt 0:04:56]} 12. Be4 {[%emt 0:08:30]} Rb8 {[%emt 0:00:19]} 13. Qa4 {[%emt 0:08:04]} a6 {[%emt 0:03:36]} 14. Rae1 {[%emt 0:05:27]} b5 {[%emt 0:13:29]} 15. Qd1 {[%emt 0:04:49]} Nb6 {[%emt 0:08:16]} 16. Nf3 {[%emt 0:07:38]} Nc4 {[%emt 0:08:59]} 17. Qc1 {[%emt 0:00:40]} Rd8 {[%emt 0:09:02]} 18. g4 {[%emt 0:02:28]} c5 {[%emt 0:06:25]} 19. b3 {[%emt 0:02:04]} Nb6 {[%emt 0:00:10]} 20. Ng3 {[%emt 0:01:31]} cxd4 {[%emt 0:07:25]} 21. cxd4 {[%emt 0:05:59]} dxe5 {[%emt 0:00:54]} 22. dxe5 {[%emt 0:03:51]} Bf8 {[%emt 0:03:45]} 23. f5 {[%emt 0:03:46]} Qc5+ {[%emt 0:00:42]} 24. Kg2 {[%emt 0:01:46]} Qxc1 {[%emt 0:03:33]} 25. Rxc1 {[%emt 0:00:09]} gxf5 {[%emt 0:02:19]} 26. gxf5 {[%emt 0:00:17]} Nd5 {[%emt 0:01:29]} 27. Kf2 {[%emt 0:06:12]} Ba3 {[%emt 0:04:46]} 28. Rc2 {[%emt 0:04:27]} Bb7 {[%emt 0:02:54]} 29. fxe6 {[%emt 0:00:40]} fxe6 {[%emt 0:00:08]} 30. Nh5 {[%emt 0:01:56]} Rbc8 {[%emt 0:05:57]} 31. Rxc8 {[%emt 0:01:48]} Rxc8 {[%emt 0:00:18]} 32. Nf6+ {[%emt 0:07:39]} Kf7 {[%emt 0:03:04]} 33. Nxd5 {[%emt 0:01:39]} Bxd5 {[%emt 0:01:02]} 34. Bxd5 {[%emt 0:00:45]} exd5 {[%emt 0:00:49]} 35. Nd4 {[%emt 0:01:02]} Bb2 {[%emt 0:02:16]} 36. Ke3+ {[%emt 0:00:48]} Ke7 {[%emt 0:02:25]} 37. Rf6 {[%emt 0:01:40]} Rc3+ {[%emt 0:00:18]} 38. Kd2 {[%emt 0:01:11]} Rh3 {[%emt 0:00:12]} 39. Nf5+ {[%emt 0:00:34]} Ke8 {[%emt 0:00:45]} 40. Rxh6 {[%emt 0:00:35]} Rxh6 {[%emt 0:00:54]} 41. Nxh6 {[%emt 0:30:00]} Bxe5 {[%emt 0:30:10]} 42. Ng4 {[%emt 0:00:08]} Bc7 {[%emt 0:00:00]} 43. h4 {[%emt 0:00:00]} Kf7 {[%emt 0:00:00]} 44. Kd3 {[%emt 0:00:00]} Ke6 {[%emt 0:00:00]} 45. h5 {[%emt 0:00:00]} Kf5 {[%emt 0:00:00]} 46. Ne3+ {[%emt 0:00:00]} Ke6 {[%emt 0:00:00]} 47. h6 {[%emt 0:00:00]} Be5 {[%emt 0:00:00]} 48. h7 {[%emt 0:00:00]} Bg7 {[%emt 0:00:00]} 49. Ng2 {[%emt 0:00:00]} Kf5 {[%emt 0:00:00]} 50. Nh4+ {[%emt 0:00:00]} Kg5 {[%emt 0:00:50]} 51. Ng2 {[%emt 0:00:00]} Kf5 {[%emt 0:01:05]} 52. Ne3+ {[%emt 0:00:00]} Ke6 {[%emt 0:00:01]} 53. b4 {[%emt 0:00:00]} Ke5 {[%emt 0:00:44]} 54. Nc2 {[%emt 0:00:00]} Bf6 {[%emt 0:01:20]} 55. Nd4 {[%emt 0:00:00]} Kd6 {[%emt 0:01:36]} 56. Nb3 {[%emt 0:00:00]} Kc6 {[%emt 0:01:01]} 57. a3 {[%emt 0:00:00]} Kb6 {[%emt 0:00:57]} 58. Nc5 {[%emt 0:00:00]} Bb2 {[%emt 0:00:53]} 59. Ne6 {[%emt 0:00:00]} Bf6 {[%emt 0:00:11]} 60. Nf4 {[%emt 0:00:00]} 1-0

[Event "WSTCC-50 2024"]
[Site "Krakow"]
[Date "2024.07.03"]
[Round "2.18"]
[White "McHugh, Kevin"]
[Black "Rasalingam, Haran"]
[Result "0-1"]
[ECO "C03"]
[WhiteElo "1938"]
[BlackElo "1944"]
[Annotator "NA RC"]
[PlyCount "112"]
[EventDate "2024.07.01"]
[EventType "team-tourn"]
[EventCountry "POL"]
[SourceTitle "playchess.com"]
[Source "ChessBase"]
[SourceQuality "1"]
[TimeControl "40/5400+30:1800+30"]

1. e4 {[%emt 0:00:03]} e6 {[%emt 0:00:10]} 2. d4 {[%emt 0:00:06]} d5 {[%emt 0:00:06]} 3. Nd2 {[%emt 0:00:07]} h6 {[%emt 0:00:07]} 4. Bd3 {[%emt 0:01:02]} c5 {[%emt 0:00:12]} 5. exd5 {[%emt 0:00:41]} exd5 {[%emt 0:00:41]} 6. Qe2+ {[%emt 0:00:28]} Be6 {[%emt 0:02:30]} 7. dxc5 {[%emt 0:01:51]} Bxc5 {[%emt 0:00:39]} 8. Nb3 {[%emt 0:00:24]} Bb6 {[%emt 0:03:14]} 9. Nf3 {[%emt 0:00:14]} Nc6 {[%emt 0:00:46]} 10. O-O {[%emt 0:00:15]} Nge7 {[%emt 0:01:30]} 11. c3 {[%emt 0:01:02]} O-O {[%emt 0:00:23]} 12. Be3 Bg4 13. h3 {[%emt 0:05:23]} Bh5 {[%emt 0:05:30]} 14. Bxb6 {[%emt 0:02:12]} Qxb6 {[%emt 0:00:29]} 15. Rfe1 {[%emt 0:01:24]} a5 {[%emt 0:02:12]} 16. Qe3 {[%emt 0:00:51]} Qxe3 {[%emt 0:16:58]} 17. Rxe3 {[%emt 0:00:10]} Bxf3 {[%emt 0:04:45]} 18. Rxf3 {[%emt 0:00:22]} a4 {[%emt 0:00:10]} 19. Nd2 {[%emt 0:05:16]} a3 {[%emt 0:11:01]} 20. b3 {[%emt 0:01:41]} d4 {[%emt 0:01:11]} 21. cxd4 {[%emt 0:01:26]} Nxd4 {[%emt 0:00:36]} 22. Re3 {[%emt 0:00:53]} Nec6 {[%emt 0:01:35]} 23. Be4 {[%emt 0:11:47]} Rfd8 {[%emt 0:06:06]} 24. Nf3 {[%emt 0:03:37]} Nxf3+ {[%emt 0:12:29]} 25. Bxf3 {[%emt 0:01:35]} Rd2 {[%emt 0:00:15]} 26. Bxc6 {[%emt 0:02:08]} bxc6 {[%emt 0:00:12]} 27. b4 {[%emt 0:01:20]} Rb2 {[%emt 0:01:16]} 28. Rc3 {[%emt 0:00:44]} Ra6 {[%emt 0:01:04]} 29. Rc4 {[%emt 0:03:31]} Kf8 {[%emt 0:03:49]} 30. g3 {[%emt 0:08:28]} g6 {[%emt 0:04:38]} 31. Kg2 {[%emt 0:01:24]} f6 {[%emt 0:05:33]} 32. Kf3 {[%emt 0:02:45]} Kf7 {[%emt 0:00:06]} 33. Ke3 {[%emt 0:03:30]} f5 {[%emt 0:00:16]} 34. h4 {[%emt 0:00:40]} Ke6 {[%emt 0:00:26]} 35. Kf3 {[%emt 0:02:33]} Kd6 {[%emt 0:02:20]} 36. Rd4+ {[%emt 0:03:50]} Kc7 {[%emt 0:02:22]} 37. Rc4 {[%emt 0:01:11]} Kb6 {[%emt 0:01:05]} 38. Rac1 {[%emt 0:01:31]} Kb5 {[%emt 0:01:53]} 39. R1c2 {[%emt 0:04:16]} Rxc2 {[%emt 0:02:58]} 40. Rxc2 {[%emt 0:00:07]} Kxb4 {[%emt 0:00:13]} 41. Kf4 {[%emt 0:30:12]} c5 {[%emt 0:30:15]} 42. h5 {[%emt 0:00:11]} gxh5 43. Kxf5 {[%emt 0:00:08]} Rd6 {[%emt 0:02:42]} 44. Ke5 {[%emt 0:00:29]} Rd8 {[%emt 0:00:00]} 45. f4 {[%emt 0:00:00]} c4 {[%emt 0:00:00]} 46. f5 {[%emt 0:00:00]} c3 {[%emt 0:00:00]} 47. f6 {[%emt 0:00:00]} Kc4 {[%emt 0:00:00]} 48. Rf2 {[%emt 0:00:00]} Kd3 {[%emt 0:00:00]} 49. Rf3+ {[%emt 0:00:00]} Kd2 {[%emt 0:00:00]} 50. Rf2+ {[%emt 0:00:00]} Kc1 {[%emt 0:00:00]} 51. f7 {[%emt 0:00:00]} c2 {[%emt 0:00:00]} 52. f8=Q {[%emt 0:00:00]} Rxf8 53. Rxf8 {[%emt 0:00:00]} Kb1 {[%emt 0:00:00]} 54. Rc8 {[%emt 0:00:00]} c1=Q {[%emt 0:00:00]} 55. Rxc1+ {[%emt 0:00:00]} Kxc1 {[%emt 0:00:00]} 56. Kd4 {[%emt 0:00:00]} Kd2 {[%emt 0:00:00]} 0-1

[Event "WSTCC-50 2024"]
[Site "Krakow"]
[Date "2024.07.03"]
[Round "2.19"]
[White "Pieper, Thomas"]
[Black "Flis, Pawel"]
[Result "1/2-1/2"]
[ECO "C50"]
[WhiteElo "2170"]
[BlackElo "1980"]
[Annotator "RC"]
[PlyCount "102"]
[EventDate "2024.07.01"]
[EventType "team-tourn"]
[EventCountry "POL"]
[SourceTitle "playchess.com"]
[Source "ChessBase"]
[SourceQuality "1"]
[TimeControl "40/5400+30:1800+30"]

1. e4 {[%emt 0:00:02]} e5 {[%emt 0:00:06]} 2. Nf3 {[%emt 0:00:26]} Nc6 {[%emt 0:00:07]} 3. Bc4 {[%emt 0:00:57]} Be7 {[%emt 0:00:27]} 4. d4 {[%emt 0:01:25]} d6 {[%emt 0:00:11]} 5. d5 {[%emt 0:17:05]} Nb8 {[%emt 0:00:11]} 6. Bd3 {[%emt 0:00:04]} Nf6 {[%emt 0:00:16]} 7. c4 {[%emt 0:00:39]} O-O {[%emt 0:02:48]} 8. Nc3 {[%emt 0:00:12]} Nbd7 {[%emt 0:00:20]} 9. h3 {[%emt 0:01:18]} Nc5 {[%emt 0:00:10]} 10. Bc2 {[%emt 0:00:40]} a5 {[%emt 0:00:07]} 11. Be3 {[%emt 0:01:26]} b6 {[%emt 0:02:39]} 12. a3 {[%emt 0:09:31]} g6 {[%emt 0:08:12]} 13. b4 {[%emt 0:02:38]} axb4 {[%emt 0:01:57]} 14. axb4 {[%emt 0:00:07]} Rxa1 {[%emt 0:00:08]} 15. Qxa1 {[%emt 0:00:04]} Na6 {[%emt 0:02:17]} 16. Qb1 {[%emt 0:12:46]} Nh5 {[%emt 0:01:38]} 17. Bh6 {[%emt 0:04:10]} Ng7 {[%emt 0:03:12]} 18. g4 {[%emt 0:07:01]} Bd7 {[%emt 0:10:12]} 19. Bd3 {[%emt 0:01:56]} Qc8 {[%emt 0:03:31]} 20. Rg1 {[%emt 0:01:39]} f6 {[%emt 0:10:35]} 21. Qb2 {[%emt 0:02:57]} Rf7 {[%emt 0:04:08]} 22. Ke2 {[%emt 0:01:35]} f5 {[%emt 0:18:06]} 23. gxf5 {[%emt 0:03:35]} gxf5 {[%emt 0:00:23]} 24. Bxg7 {[%emt 0:21:21]} Rxg7 {[%emt 0:00:49]} 25. Rxg7+ {[%emt 0:00:09]} Kxg7 {[%emt 0:00:03]} 26. Qb1 {[%emt 0:03:23]} f4 {[%emt 0:05:11]} 27. Ng1 {[%emt 0:04:19]} h5 {[%emt 0:10:54]} 28. Qb3 {[%emt 0:00:44]} Nb8 {[%emt 0:01:26]} 29. Qa3 {[%emt 0:00:25]} Bxh3 {[%emt 0:03:44]} 30. Nxh3 {[%emt 0:00:36]} Qxh3 {[%emt 0:00:07]} 31. Qa7 {[%emt 0:00:40]} Qc8 {[%emt 0:00:31]} 32. Nb5 {[%emt 0:00:27]} f3+ {[%emt 0:05:58]} 33. Kd2 {[%emt 0:00:26]} Na6 {[%emt 0:01:46]} 34. c5 {[%emt 0:01:08]} bxc5 {[%emt 0:01:41]} 35. Nxd6 {[%emt 0:00:15]} Bxd6 {[%emt 0:01:49]} 36. Bxa6 {[%emt 0:00:07]} Qf8 {[%emt 0:00:45]} 37. bxc5 {[%emt 0:00:24]} Bxc5 {[%emt 0:00:31]} 38. Qxc7+ {[%emt 0:00:09]} Qe7 {[%emt 0:00:13]} 39. Qxe7+ {[%emt 0:00:32]} Bxe7 {[%emt 0:00:05]} 40. Ke3 {[%emt 0:00:39]} Kf6 {[%emt 0:00:48]} 41. Kxf3 {[%emt 0:30:25]} Kg5 {[%emt 0:31:00]} 42. Bc8 {[%emt 0:02:04]} Bc5 {[%emt 0:00:33]} 43. Bd7 {[%emt 0:00:00]} Bd6 {[%emt 0:00:00]} 44. Be8 {[%emt 0:00:00]} Bc5 {[%emt 0:00:00]} 45. Bf7 {[%emt 0:00:00]} h4 {[%emt 0:00:00]} 46. Be6 {[%emt 0:00:00]} Kf6 {[%emt 0:00:00]} 47. Bh3 {[%emt 0:00:00]} Ke7 {[%emt 0:00:00]} 48. Ke2 {[%emt 0:00:00]} Kd6 {[%emt 0:00:00]} 49. f3 {[%emt 0:00:00]} Ba3 {[%emt 0:00:00]} 50. Kd3 {[%emt 0:00:00]} Bc1 {[%emt 0:00:00]} 51. Bg4 {[%emt 0:00:00]} Bf4 {[%emt 0:00:00]} 1/2-1/2

[Event "WSTCC-50 2024"]
[Site "Krakow"]
[Date "2024.07.03"]
[Round "2.19"]
[White "Wilson, Edgar"]
[Black "Fox, Anthony"]
[Result "1/2-1/2"]
[ECO "C29"]
[WhiteElo "1912"]
[BlackElo "1909"]
[Annotator "NA RC"]
[PlyCount "58"]
[EventDate "2024.07.01"]
[EventType "team-tourn"]
[EventCountry "POL"]
[SourceTitle "playchess.com"]
[Source "ChessBase"]
[SourceQuality "1"]
[TimeControl "40/5400+30:1800+30"]

1. e4 {[%emt 0:00:05]} e5 {[%emt 0:00:07]} 2. Nc3 {[%emt 0:00:13]} Nf6 {[%emt 0:00:10]} 3. f4 {[%emt 0:00:17]} d5 {[%emt 0:00:14]} 4. fxe5 {[%emt 0:00:14]} Nxe4 {[%emt 0:00:15]} 5. Qf3 {[%emt 0:00:20]} Nxc3 {[%emt 0:03:55]} 6. dxc3 {[%emt 0:00:35]} Be7 {[%emt 0:01:51]} 7. Bf4 {[%emt 0:02:15]} Be6 {[%emt 0:00:13]} 8. O-O-O {[%emt 0:02:47]} Nd7 {[%emt 0:00:38]} 9. Kb1 {[%emt 0:05:36]} c5 {[%emt 0:09:02]} 10. Ne2 {[%emt 0:08:25]} Qa5 {[%emt 0:03:51]} 11. c4 {[%emt 0:07:45]} d4 {[%emt 0:01:11]} 12. Nc1 {[%emt 0:01:56]} O-O-O {[%emt 0:02:57]} 13. Bd3 {[%emt 0:03:05]} g5 {[%emt 0:10:54]} 14. Bg3 {[%emt 0:03:20]} h5 {[%emt 0:02:12]} 15. Rde1 {[%emt 0:13:42]} h4 {[%emt 0:08:55]} 16. Bf2 {[%emt 0:00:43]} Qc7 {[%emt 0:00:43]} 17. Qe2 {[%emt 0:04:54]} g4 {[%emt 0:01:52]} 18. b3 {[%emt 0:06:08]} Rh5 {[%emt 0:02:27]} 19. Be4 {[%emt 0:08:57]} Nxe5 {[%emt 0:07:29]} 20. Nd3 {[%emt 0:01:12]} Nxd3 {[%emt 0:01:21]} 21. Bxd3 {[%emt 0:05:28]} Rh6 {[%emt 0:07:16]} 22. Ref1 {[%emt 0:04:17]} Bd6 {[%emt 0:02:23]} 23. h3 {[%emt 0:02:19]} g3 {[%emt 0:04:36]} 24. Be1 {[%emt 0:00:25]} Rg8 {[%emt 0:05:16]} 25. Bd2 {[%emt 0:01:08]} Rhh8 {[%emt 0:00:40]} 26. Bf5 {[%emt 0:02:11]} Qd7 {[%emt 0:01:46]} 27. Be4 {[%emt 0:05:24]} Qc7 {[%emt 0:09:38]} 28. Bf5 {[%emt 0:01:25]} Qd7 {[%emt 0:00:29]} 29. Be4 {[%emt 0:00:13]} Qc7 1/2-1/2

[Event "WSTCC-50 2024"]
[Site "Krakow"]
[Date "2024.07.03"]
[Round "2.20"]
[White "Lyons, Brendan"]
[Black "Proudfoot, Andy"]
[Result "1-0"]
[ECO "A04"]
[WhiteElo "1920"]
[BlackElo "1607"]
[Annotator "NA RC"]
[PlyCount "53"]
[EventDate "2024.07.01"]
[EventType "team-tourn"]
[EventCountry "POL"]
[SourceTitle "playchess.com"]
[Source "ChessBase"]
[SourceQuality "1"]
[TimeControl "40/5400+30:1800+30"]

1. Nf3 {[%emt 0:00:10]} d6 {[%emt 0:00:39]} 2. g3 {[%emt 0:00:38]} Nf6 {[%emt 0:00:25]} 3. Bg2 {[%emt 0:00:12]} e5 {[%emt 0:01:50]} 4. d3 {[%emt 0:00:57]} Nbd7 {[%emt 0:01:32]} 5. e4 {[%emt 0:00:36]} Be7 {[%emt 0:00:37]} 6. O-O {[%emt 0:00:19]} c6 {[%emt 0:06:52]} 7. b3 {[%emt 0:02:27]} h6 {[%emt 0:04:36]} 8. Bb2 {[%emt 0:01:03]} g5 {[%emt 0:09:45]} 9. Re1 {[%emt 0:03:04]} Qc7 {[%emt 0:09:33]} 10. a4 {[%emt 0:01:59]} Nf8 {[%emt 0:05:42]} 11. Na3 {[%emt 0:05:46]} Ng6 {[%emt 0:05:18]} 12. Nc4 {[%emt 0:08:40]} Be6 {[%emt 0:07:16]} 13. Nfd2 {[%emt 0:09:36]} h5 {[%emt 0:03:38]} 14. d4 {[%emt 0:08:30]} h4 {[%emt 0:04:40]} 15. Ne3 {[%emt 0:07:11]} hxg3 {[%emt 0:04:51]} 16. fxg3 {[%emt 0:02:07]} O-O-O {[%emt 0:03:49]} 17. Nf5 {[%emt 0:04:13]} Rdg8 {[%emt 0:11:33]} 18. c4 {[%emt 0:05:45]} Qb6 {[%emt 0:07:25]} 19. a5 {[%emt 0:01:04]} Qc7 {[%emt 0:00:41]} 20. b4 {[%emt 0:01:22]} exd4 {[%emt 0:03:31]} 21. Bxd4 {[%emt 0:00:30]} Bxf5 {[%emt 0:01:30]} 22. exf5 {[%emt 0:00:46]} Ne5 {[%emt 0:00:13]} 23. Bxa7 {[%emt 0:00:56]} Nd3 {[%emt 0:00:31]} 24. Bb6 {[%emt 0:08:06]} Qd7 {[%emt 0:00:02]} 25. a6 {[%emt 0:01:38]} bxa6 {[%emt 0:00:55]} 26. Rxa6 {[%emt 0:00:26]} Qxf5 {[%emt 0:01:55]} 27. Bxc6 {[%emt 0:00:35]} 1-0

[Event "WSTCC-50 2024"]
[Site "Krakow"]
[Date "2024.07.03"]
[Round "2.20"]
[White "Zielinski, Olgierd"]
[Black "Scheckenbach, Franz"]
[Result "1-0"]
[ECO "B55"]
[WhiteElo "1913"]
[BlackElo "2072"]
[Annotator "NA RC"]
[PlyCount "75"]
[EventDate "2024.07.01"]
[EventType "team-tourn"]
[EventCountry "POL"]
[SourceTitle "playchess.com"]
[Source "ChessBase"]
[SourceQuality "1"]
[TimeControl "40/5400+30:1800+30"]

1. e4 c5 {[%emt 0:00:10]} 2. Nf3 {[%emt 0:00:11]} d6 {[%emt 0:00:07]} 3. d4 {[%emt 0:00:11]} cxd4 {[%emt 0:00:10]} 4. Nxd4 {[%emt 0:00:16]} Nf6 {[%emt 0:00:09]} 5. f3 {[%emt 0:00:06]} e5 {[%emt 0:00:29]} 6. Bb5+ {[%emt 0:00:25]} Bd7 {[%emt 0:04:47]} 7. Bxd7+ {[%emt 0:00:06]} Qxd7 {[%emt 0:01:28]} 8. Nb3 {[%emt 0:01:15]} Be7 {[%emt 0:04:25]} 9. Nc3 {[%emt 0:00:52]} O-O {[%emt 0:03:43]} 10. Bg5 {[%emt 0:00:25]} Na6 {[%emt 0:04:36]} 11. Bxf6 {[%emt 0:00:31]} Bxf6 {[%emt 0:00:26]} 12. Nd5 {[%emt 0:00:10]} Bg5 {[%emt 0:02:04]} 13. h4 {[%emt 0:00:37]} Bd8 {[%emt 0:01:59]} 14. g4 {[%emt 0:00:38]} Nc7 {[%emt 0:00:27]} 15. Nxc7 {[%emt 0:02:18]} Qxc7 {[%emt 0:01:12]} 16. Qd3 {[%emt 0:00:17]} Rc8 {[%emt 0:00:52]} 17. c3 {[%emt 0:00:32]} a5 {[%emt 0:00:27]} 18. Nd2 {[%emt 0:04:45]} b5 {[%emt 0:10:27]} 19. a3 {[%emt 0:06:02]} Qc5 {[%emt 0:05:14]} 20. Nb3 {[%emt 0:06:26]} Qb6 {[%emt 0:02:37]} 21. Rd1 {[%emt 0:00:41]} b4 {[%emt 0:06:44]} 22. axb4 {[%emt 0:02:31]} axb4 {[%emt 0:00:39]} 23. c4 {[%emt 0:00:23]} Bxh4+ {[%emt 0:05:51]} 24. Rxh4 {[%emt 0:01:58]} Qg1+ {[%emt 0:00:22]} 25. Ke2 {[%emt 0:00:31]} Qg2+ {[%emt 0:00:51]} 26. Ke3 {[%emt 0:00:43]} Qxb2 {[%emt 0:05:09]} 27. Nd2 {[%emt 0:00:50]} Qa2 {[%emt 0:00:52]} 28. Rdh1 {[%emt 0:03:20]} h6 {[%emt 0:01:23]} 29. g5 {[%emt 0:00:09]} Ra8 {[%emt 0:00:41]} 30. Ke2 {[%emt 0:01:14]} Rfd8 {[%emt 0:03:11]} 31. gxh6 {[%emt 0:01:49]} g6 {[%emt 0:00:12]} 32. h7+ {[%emt 0:00:49]} Kh8 {[%emt 0:00:10]} 33. Qe3 {[%emt 0:00:19]} Qa5 {[%emt 0:08:37]} 34. Qg5 {[%emt 0:01:12]} Kg7 {[%emt 0:00:12]} 35. Rh6 {[%emt 0:01:04]} Qc7 {[%emt 0:01:16]} 36. Rg1 {[%emt 0:00:37]} Rf8 {[%emt 0:07:15]} 37. h8=Q+ {[%emt 0:03:20]} Rxh8 {[%emt 0:00:46]} 38. Rxg6+ {[%emt 0:00:09]} 1-0

[Event "WSTCC-50 2024"]
[Site "Krakow"]
[Date "2024.07.03"]
[Round "2.21"]
[White "Lima, Darcy"]
[Black "Baginskaite, Kamile"]
[Result "1-0"]
[ECO "B50"]
[WhiteElo "2392"]
[BlackElo "2057"]
[Annotator "TA"]
[PlyCount "43"]
[EventDate "2024.07.01"]
[EventType "team-tourn"]
[EventCountry "POL"]
[SourceTitle "playchess.com"]
[Source "ChessBase"]
[SourceQuality "1"]
[TimeControl "40/5400+30:1800+30"]

{[%evp 13,43,0,11,-16,-4,0,0,-5,-9,0,-4,-10,0,-2,0,0,0,0,58,52,47,53,50,57,57,59,58,52,187,79,459,455]} 1. e4 {[%emt 0:00:58]} c5 {[%emt 0:00:30]} 2. Nf3 {[%emt 0:00:07]} d6 {[%emt 0:00:05]} 3. c3 {[%emt 0:00:04]} Nf6 {[%emt 0:00:35]} 4. Be2 {[%emt 0:00:08]} g6 {[%emt 0:00:42]} 5. O-O {[%emt 0:00:10]} Bg7 {[%emt 0:00:04]} 6. Re1 {[%emt 0:00:06]} O-O {[%emt 0:00:36]} 7. Bf1 {[%emt 0:00:05]} e5 {[%emt 0:11:43]} 8. d4 {[%emt 0:02:39]} cxd4 {[%emt 0:02:28]} 9. cxd4 {[%emt 0:00:24]} exd4 {[%emt 0:00:07]} 10. Nxd4 {[%emt 0:00:06] The position is equal.} d5 {[%emt 0:01:03]} 11. e5 {[%emt 0:02:43][%cal Oc1g5] aiming for Bg5!} Ng4 {[%emt 0:19:28][%cal Od8h4,Bf6g4,Bg4e5,Be5c6][%mdl 32]} 12. Bf4 $1 {[%emt 0:09:08]} Re8 {[%emt 0:03:04][%cal Rg4e5]} 13. Nc3 {[%emt 0:25:18]} Nxe5 {[%emt 0:24:26]} 14. Ndb5 {[%emt 0:05:56]} d4 {[%emt 0:07:46]} 15. Nxd4 {[%emt 0:06:58]} (15. Qxd4 $2 {loses.} Nf3+ 16. gxf3 Bxd4 $19) 15... a6 {[%emt 0:02:14]} ({Black should try} 15... Nbc6 $11 16. Ndb5 Bg4 17. Qxd8 Rexd8) 16. Qd2 {[%emt 0:05:15]} Nbc6 {[%emt 0:10:37]} 17. Nxc6 {[%emt 0:01:11]} Nxc6 {[%emt 0:00:03]} 18. Rxe8+ {[%emt 0:12:30]} Qxe8 {[%emt 0:00:03]} 19. Nd5 {[%emt 0:00:06] Threatens to win with Nc7.} Qd8 {[%emt 0:03:14]} 20. Bc7 {[%emt 0:15:29]} Qd7 {[%emt 0:00:02] [#]} (20... Qf8 $14) 21. Rd1 {[%emt 0:00:52]} (21. Re1 $1 $18 {[%cal Od2f4] is the precise move to win. Strongly threatening Qf4!} h6 22. Bf4) 21... Bd4 $2 {[%emt 0:03:36][%mdl 8192] [#]} (21... Nd4 $16 22. Nb6 Qxc7 23. Nxa8 Qd6) 22. Qxd4 $1 {[%emt 0:00:34][%mdl 512] Weighted Error Value: White=0.08 (flawless) /Black=0.67.  Loses game:     	---       	Black=1      Mistake:       	White=1     	Black=2      OK:         	White=7     	Black=5      Best:        	White=1     	---        Strong:       	White=1     	---        Brilliant:      	White=1     	---} 1-0